[Event "15th Chennai GM Open 2025"]
[Site "Chennai"]
[Date "2025.01.03"]
[Round "2.15"]
[White "Nguyen, Duc Hoa"]
[Black "Siddhanth Poonja"]
[Result "1/2-1/2"]
[ECO "B35"]
[WhiteElo "2358"]
[BlackElo "2096"]
[Annotator "TA"]
[PlyCount "120"]
[EventDate "2025.01.02"]
[EventType "swiss"]
[EventCountry "IND"]
[SourceTitle "playchess.com"]
[Source "ChessBase"]
[SourceQuality "1"]
[TimeControl "5400+30"]

{[%evp 14,120,33,13,31,18,35,39,42,43,40,43,40,47,42,44,43,23,46,52,47,32,34,32,38,27,33,31,33,27,27,27,27,27,35,35,37,28,47,21,28,9,21,0,12,0,0,0,0,-26,8,0,0,0,0,0,0,0,0,0,0,0,0,0,0,0,0,0,0,0,0,0,0,0,0,0,0,0,0,0,0,0,0,0,0,0,0,0,6,0,0,0,0,0,0,0,0,0,0,0,0,0,0,0,0,0,0,0,0]} 1. e4 {[%emt 0:00:08]} c5 {[%emt 0:00:25]} 2. Nc3 {[%emt 0:00:17]} Nc6 {[%emt 0:01:21]} 3. Nf3 {[%emt 0:00:24]} g6 {[%emt 0:01:24]} 4. d4 {[%emt 0:01:13]} cxd4 {[%emt 0:00:09]} 5. Nxd4 {[%emt 0:00:05]} Bg7 {[%emt 0:00:07]} 6. Be3 {[%emt 0:00:09]} Nf6 {[%emt 0:00:30]} 7. Bc4 {[%emt 0:00:24]} O-O {[%emt 0:00:09]} 8. Bb3 {[%emt 0:00:44]} Re8 {[%emt 0:00:07]} 9. f3 {[%emt 0:01:13]} d5 {[%emt 0:00:08]} 10. exd5 {[%emt 0:03:53]} Nb4 {[%emt 0:00:27][%cal Rb4d5] White is slightly better.} 11. Nde2 {[%emt 0:03:11]} e6 $1 {[%emt 0:00:08][%cal Rf6d5]} 12. Bd4 {[%emt 0:01:08]} Nbxd5 {[%emt 0:02:02]} 13. Nxd5 {[%emt 0:00:52]} (13. Bxd5 {is more complex.} exd5 14. Qd2 b5 15. a3) 13... Nxd5 {[%emt 0:00:56]} 14. Bxg7 {[%emt 0:00:50]} Kxg7 {[%emt 0:00:12]} 15. Bxd5 {[%emt 0:03:04]} Qxd5 {[%emt 0:03:05]} 16. Qxd5 {[%emt 0:00:12]} exd5 {[%emt 0:00:24]} 17. Kd2 {[%emt 0:00:13]} Kf6 {[%emt 0:04:37]} 18. Rhe1 {[%emt 0:01:18]} Be6 {[%emt 0:00:10]} 19. Nd4 {[%emt 0:00:18]} Bd7 {[%emt 0:01:28]} 20. c3 {[%emt 0:03:56]} a6 {[%emt 0:02:33]} 21. g3 {[%emt 0:01:30]} h5 {[%emt 0:05:30]} 22. h4 {[%emt 0:01:03]} Rxe1 {[%emt 0:01:09]} 23. Rxe1 $11 {[%emt 0:00:10][%mdl 4096] Endgame. KRB-KRN} Rc8 {[%emt 0:00:21]} 24. Kd3 {[%emt 0:01:17]} Be6 {[%emt 0:01:14]} 25. Re3 {[%emt 0:01:21]} Ke7 {[%emt 0:01:00]} 26. b3 {[%emt 0:01:05]} Kd6 {[%emt 0:04:32]} 27. Ne2 {[%emt 0:00:42]} Rg8 {[%emt 0:00:57]} 28. f4 {[%emt 0:12:50]} Bg4 {[%emt 0:01:41]} 29. Nc1 {[%emt 0:01:41]} Bf5+ {[%emt 0:00:57]} 30. Kd4 {[%emt 0:00:08]} f6 {[%emt 0:00:04]} 31. Ne2 {[%emt 0:02:43]} Bb1 {[%emt 0:00:23]} 32. a3 {[%emt 0:09:34] The position is equal.} b5 {[%emt 0:00:35]} 33. c4 {[%emt 0:05:49]} dxc4 {[%emt 0:01:10]} 34. bxc4 {[%emt 0:00:08]} Rc8 {[%emt 0:00:55]} 35. cxb5 {[%emt 0:02:11]} axb5 {[%emt 0:01:12][%csl Gb5][%cal Rc8c4] [#]} 36. Rb3 {[%emt 0:02:13][%csl LRb1,LRb5]} Bf5 {[%emt 0:01:46]} 37. Nc3 {[%emt 0:06:21]} Rc4+ {[%emt 0:00:46]} 38. Ke3 {[%emt 0:00:04]} Bc2 {[%emt 0:01:14]} 39. Nxb5+ {[%emt 0:00:51]} Kc5 {[%emt 0:00:01]} 40. Rb2 {[%emt 0:01:14][%cal Ob5d4]} Ba4 {[%emt 0:00:02]} 41. Nc7 {[%emt 0:01:21]} Rc3+ {[%emt 0:00:44]} 42. Kf2 {[%emt 0:00:10]} Rxa3 {[%emt 0:03:45]} 43. f5 {[%emt 0:01:25]} gxf5 {[%emt 0:00:37]} 44. Ne6+ {[%emt 0:00:13]} Kd6 {[%emt 0:00:24]} 45. Nf4 {[%emt 0:00:16]} Bc6 {[%emt 0:00:47]} 46. Nxh5 {[%emt 0:03:06]} f4 {[%emt 0:03:23]} 47. Rd2+ {[%emt 0:00:56]} Ke7 {[%emt 0:00:19]} 48. gxf4 {[%emt 0:00:19]} Rh3 {[%emt 0:00:21]} 49. Ng3 {[%emt 0:00:51]} Ke6 {[%emt 0:03:20]} 50. Rd4 {[%emt 0:08:34]} f5 {[%emt 0:02:07]} 51. h5 {[%emt 0:00:25]} Rh2+ {[%emt 0:00:07]} 52. Ke1 {[%emt 0:00:32]} Bf3 {[%emt 0:02:19]} 53. Rb4 {[%emt 0:04:23]} Bg4 {[%emt 0:00:30]} 54. Rb6+ {[%emt 0:00:41]} Kf7 {[%emt 0:01:24]} 55. h6 {[%emt 0:01:59]} Rg2 {[%emt 0:02:40]} 56. Rb7+ {[%emt 0:00:13]} Kf6 {[%emt 0:02:45]} 57. Rb8 {[%emt 0:00:34] [#] Hoping for h7.} Rh2 {[%emt 0:00:59]} (57... Rxg3 58. h7 Rh3 59. h8=Q+ (59. h8=R Re3+ 60. Kd2 Ra3 $18) 59... Rxh8 60. Rxh8 $18) 58. Rb6+ {[%emt 0:00:14]} Kf7 {[%emt 0:00:01]} 59. Kf1 {[%emt 0:01:32]} Kg8 {[%emt 0:00:43]} 60. Rf6 {[%emt 0:02:48]} Kh7 {[%emt 0:01:29] Weighted Error Value: White=0.04 (flawless) /Black=0.03 (flawless) .  Inaccurate:     	White=2     	Black=1      OK:         	White=17    	Black=29     Best:        	White=1     	Black=1      Strong:       	---       	Black=1} 1/2-1/2

[Event "15th Chennai GM Open 2025"]
[Site "Chennai"]
[Date "2025.01.03"]
[Round "3.1"]
[White "Slizhevsky, Alexander"]
[Black "Aronyak Ghosh"]
[Result "0-1"]
[ECO "B04"]
[WhiteElo "2340"]
[BlackElo "2544"]
[Annotator "TA"]
[PlyCount "68"]
[EventDate "2025.01.02"]
[EventType "swiss"]
[EventCountry "IND"]
[SourceTitle "playchess.com"]
[Source "ChessBase"]
[SourceQuality "1"]
[TimeControl "5400+30"]

{[%evp 21,68,33,51,3,7,0,0,0,0,-25,-26,-51,-52,-49,-48,-90,-98,-77,-91,-114,-94,-100,-89,-127,-76,-120,-120,-126,-97,-87,-78,-285,-279,-307,-323,-361,-331,-335,-225,-905,-913,-785,-357,-988,-943,-29974,-29974,-29987,-29988]} 1. e4 {[%emt 0:00:25]} Nf6 {[%emt 0:02:08]} 2. e5 {[%emt 0:00:40]} Nd5 {[%emt 0:00:06]} 3. d4 {[%emt 0:00:13]} d6 {[%emt 0:00:07]} 4. Nf3 {[%emt 0:00:16]} dxe5 {[%emt 0:00:14]} 5. Nxe5 {[%emt 0:00:11]} g6 {[%emt 0:00:09]} 6. Bc4 {[%emt 0:04:17]} c6 {[%emt 0:00:25]} 7. Nd2 {[%emt 0:02:15][%cal Bb1d2,Bd2f3,Bf3e5][%mdl 32]} Bg7 {[%emt 0:04:49]} 8. Ndf3 {[%emt 0:01:26]} Nd7 {[%emt 0:02:14]} 9. O-O {[%emt 0:07:34]} Nxe5 {[%emt 0:04:44]} 10. Nxe5 {[%emt 0:00:25]} O-O {[%emt 0:00:47]} 11. Re1 {[%emt 0:04:19]} Be6 {[%emt 0:07:35]} 12. Qe2 {[%emt 0:04:16]} (12. Bb3 $14 {is more appropriate.}) 12... Qd6 $11 {[%emt 0:07:45]} 13. Bb3 {[%emt 0:04:45]} a5 {[%emt 0:01:31]} 14. a4 {[%emt 0:05:15]} Rfd8 {[%emt 0:09:38]} 15. Bd2 {[%emt 0:10:27]} Nc7 {[%emt 0:05:27]} 16. Bxe6 {[%emt 0:09:44]} Nxe6 {[%emt 0:00:31]} 17. c3 {[%emt 0:00:35]} c5 {[%emt 0:03:46]} 18. Qf3 {[%emt 0:01:52][%csl LRb7,LRf7]} (18. Nc4 Qa6 19. dxc5 Nxc5 $17) 18... Bxe5 {[%emt 0:06:05]} (18... cxd4 $2 19. Qxf7+ (19. Nxf7 Qd7 $18) 19... Kh8 20. Nc4 $18 (20. Nxg6+ hxg6 21. Rxe6 Qd5 $18)) 19. Rxe5 {[%emt 0:00:12][%cal Oa1e1]} cxd4 {[%emt 0:00:10]} 20. Rb5 {[%emt 0:10:44]} b6 {[%emt 0:03:11]} 21. h4 {[%emt 0:03:18]} Rac8 {[%emt 0:02:18]} 22. h5 {[%emt 0:01:47]} Rc5 {[%emt 0:02:41]} (22... Rc4 $142 23. Re1 Rxa4 24. hxg6 hxg6) 23. hxg6 {[%emt 0:02:12]} hxg6 {[%emt 0:00:42]} 24. Rxc5 {[%emt 0:00:20]} Qxc5 {[%emt 0:03:26]} 25. Re1 {[%emt 0:04:54]} Qd5 {[%emt 0:04:52]} 26. Qg4 $2 {[%emt 0:05:36]} (26. Qxd5 $17 Rxd5 27. b4) 26... Qb3 {[%emt 0:04:49][%csl LRa4,LRb2]} 27. Qh4 {[%emt 0:06:23]} Qxb2 {[%emt 0:05:24]} (27... Qxa4 28. Qxe7 dxc3 29. Bxc3 $17) 28. Qxe7 {[%emt 0:04:11] Rxe6 is the strong threat.} Qxd2 {[%emt 0:00:50]} 29. Rxe6 $19 {[%emt 0:00:24][%mdl 4096] Endgame KQR-KQR. Black is a pawn up.} Rf8 {[%emt 0:03:20]} ({Not} 29... dxc3 30. Rxg6+ fxg6 31. Qe6+ Kf8 32. Qf6+ Kg8 33. Qe6+ Kf8 34. Qf6+ Kg8 35. Qe6+ $11) 30. Rd6 $2 {[%emt 0:03:33] [#]} (30. Rxb6 dxc3 (30... Qxc3 31. Rd6 $17) 31. Rc6) 30... Qc1+ $1 {[%emt 0:01:04]} ({Weaker is} 30... Qxc3 31. Qe4 $17) 31. Kh2 {[%emt 0:00:05]} dxc3 {[%emt 0:00:27]} (31... Qf4+ $142 32. Kg1 dxc3) 32. Rc6 $2 {[%emt 0:02:04]} (32. Kg3 c2 33. Rc6) 32... Qf4+ {[%emt 0:00:33]} 33. Kh3 {[%emt 0:01:38]} Kg7 {[%emt 0:01:34]} 34. g3 {[%emt 0:00:27]} Qf5+ {[%emt 0:00:09]} 0-1

[Event "15th Chennai GM Open 2025"]
[Site "Chennai"]
[Date "2025.01.03"]
[Round "3.2"]
[White "Siddharth, Jagadeesh"]
[Black "Mohamed Anees M"]
[Result "1-0"]
[ECO "B28"]
[WhiteElo "2515"]
[BlackElo "2334"]
[Annotator "TA"]
[PlyCount "127"]
[EventDate "2025.01.02"]
[EventType "swiss"]
[EventCountry "IND"]
[SourceTitle "playchess.com"]
[Source "ChessBase"]
[SourceQuality "1"]
[TimeControl "5400+30"]

{[%evp 34,127,19,0,27,28,34,35,38,36,35,33,34,10,29,27,41,29,33,31,37,13,38,37,44,41,46,41,43,47,41,39,37,29,43,35,39,41,42,42,51,51,50,41,65,67,73,75,79,80,102,96,95,62,112,112,104,108,119,93,112,112,112,112,112,73,221,223,296,293,304,304,304,304,304,304,304,304,304,304,3501,2511,12789,8318,6070,5057,5057,1355,29977,29978,29978,29977,29977,29978,29983,29984]} 1. e4 {[%emt 0:00:39]} c5 {[%emt 0:00:35]} 2. Nf3 {[%emt 0:00:08]} a6 {[%emt 0:00:06]} 3. c4 {[%emt 0:01:16]} Nc6 {[%emt 0:00:07]} 4. d4 {[%emt 0:00:04]} cxd4 {[%emt 0:00:04]} 5. Nxd4 {[%emt 0:00:04]} Nf6 {[%emt 0:00:29]} 6. Nc3 {[%emt 0:00:06]} e5 {[%emt 0:00:04]} 7. Nf5 {[%emt 0:00:05]} d5 {[%emt 0:00:35]} 8. cxd5 {[%emt 0:00:05]} Bxf5 {[%emt 0:00:05]} 9. exf5 {[%emt 0:00:05]} Nd4 {[%emt 0:00:04]} 10. Bd3 {[%emt 0:00:07]} Be7 {[%emt 0:01:50]} 11. O-O {[%emt 0:01:20]} O-O {[%emt 0:00:06]} 12. Re1 {[%emt 0:01:30]} Nxd5 {[%emt 0:02:38]} 13. Nxd5 {[%emt 0:00:36]} Qxd5 {[%emt 0:00:07]} 14. Be4 {[%emt 0:00:04]} Qd7 {[%emt 0:00:55]} 15. Qg4 {[%emt 0:00:14]} Rad8 {[%emt 0:15:09]} 16. Bh6 {[%emt 0:05:06]} Bf6 {[%emt 0:01:52]} 17. h4 {[%emt 0:16:19]} Rfe8 {[%emt 0:15:30]} 18. g3 {[%emt 0:08:20]} Kh8 {[%emt 0:03:48]} 19. Be3 {[%emt 0:00:28]} g6 {[%emt 0:14:06]} 20. Bxd4 {[%emt 0:01:48]} exd4 {[%emt 0:00:06]} 21. Qf3 {[%emt 0:03:21]} Kg7 {[%emt 0:03:12]} 22. Bd3 {[%emt 0:09:40]} Qd5 {[%emt 0:05:59]} 23. Qf4 {[%emt 0:02:00]} (23. Qxd5 {simplifies} Rxe1+ 24. Rxe1 Rxd5 25. fxg6 hxg6 26. Rc1) 23... Qa5 {[%emt 0:02:13]} 24. Rec1 {[%emt 0:05:00]} Qe5 {[%emt 0:04:01]} 25. Qg4 {[%emt 0:02:29]} Re7 {[%emt 0:03:49]} 26. Rc2 {[%emt 0:01:00]} Qa5 {[%emt 0:01:25]} 27. Kh2 {[%emt 0:05:02]} Rde8 {[%emt 0:01:11]} 28. Qf3 {[%emt 0:01:38]} Qe5 {[%emt 0:01:36]} 29. Kh3 {[%emt 0:03:26]} Rd8 {[%emt 0:00:49]} 30. Rac1 {[%emt 0:13:27]} Qd5 {[%emt 0:02:57]} 31. Qxd5 {[%emt 0:00:06]} Rxd5 {[%emt 0:00:04]} 32. fxg6 {[%emt 0:00:05]} hxg6 {[%emt 0:01:33]} 33. Rc7 {[%emt 0:01:52]} Rde5 {[%emt 0:00:53]} 34. g4 {[%emt 0:00:39]} Rxc7 {[%emt 0:00:59]} 35. Rxc7 {[%emt 0:00:02]} Re7 {[%emt 0:00:05]} 36. Rc1 {[%emt 0:00:10]} Be5 {[%emt 0:03:52]} 37. Rc5 {[%emt 0:01:56]} Bf4 {[%emt 0:07:02]} 38. g5 {[%emt 0:02:48]} Rc7 {[%emt 0:03:55]} 39. Rd5 {[%emt 0:01:27]} Bc1 {[%emt 0:00:33]} 40. b3 {[%emt 0:00:01]} Bb2 {[%emt 0:00:13]} 41. Kg4 {[%emt 0:00:23]} Rc3 {[%emt 0:02:22]} 42. Be4 {[%emt 0:00:39]} (42. Rxd4 $6 Rxb3 43. f4 Bxd4 $11) 42... Rc7 {[%emt 0:00:22]} 43. Rd6 {[%emt 0:00:54]} Bc3 {[%emt 0:01:42]} ({Better is} 43... Re7 $14 44. Kf3 Rc7) 44. f4 $16 {[%emt 0:00:42]} Re7 {[%emt 0:01:25]} 45. Kf3 {[%emt 0:02:31]} Kf8 {[%emt 0:00:12]} 46. Rd8+ {[%emt 0:06:38]} Re8 {[%emt 0:00:17]} 47. Rxe8+ {[%emt 0:00:04]} Kxe8 {[%emt 0:00:03]} 48. Bxb7 {[%emt 0:00:06]} a5 {[%emt 0:00:04]} 49. Be4 {[%emt 0:00:06]} Be1 {[%emt 0:00:12] [#]} (49... f5 $16 50. gxf6 Kf7) 50. Kg4 $1 $18 {[%emt 0:00:09]} Kf8 {[%emt 0:01:06] [#]} 51. f5 $1 {[%emt 0:00:29]} gxf5+ {[%emt 0:00:40]} 52. Bxf5 {[%emt 0:00:05]} Kg7 {[%emt 0:00:13]} 53. h5 {[%emt 0:00:28]} Bd2 {[%emt 0:00:06]} 54. Bd3 {[%emt 0:00:39]} Bb4 {[%emt 0:01:12]} 55. Kf5 {[%emt 0:00:21]} (55. h6+ $6 Kf8 56. Kf5 Ba3 $16) 55... Be7 {[%emt 0:00:59]} 56. g6 {[%emt 0:00:53]} ({Resist} 56. h6+ $6 Kf8 57. Bc4 Ba3 $18) 56... fxg6+ $2 {[%emt 0:00:56]} (56... Bb4 57. Ke5 fxg6) 57. hxg6 $18 {[%emt 0:00:02]} Bd8 {[%emt 0:01:25]} 58. Ke5 {[%emt 0:00:06]} Bf6+ {[%emt 0:00:10]} 59. Kd5 {[%emt 0:00:18]} Kf8 {[%emt 0:00:34]} 60. Kc5 {[%emt 0:00:05]} Kg7 {[%emt 0:00:09]} 61. Kb5 {[%emt 0:00:05]} Bd8 {[%emt 0:00:08]} 62. b4 {[%emt 0:00:44]} axb4 {[%emt 0:00:06]} 63. Kxb4 {[%emt 0:00:04]} Kf6 {[%emt 0:00:12]} 64. Kb5 {[%emt 0:00:07]} 1-0

[Event "15th Chennai GM Open 2025"]
[Site "Chennai"]
[Date "2025.01.03"]
[Round "3.3"]
[White "Avinash Ramesh"]
[Black "Iniyan, Pa"]
[Result "0-1"]
[ECO "B80"]
[WhiteElo "2331"]
[BlackElo "2508"]
[Annotator "TA"]
[PlyCount "116"]
[EventDate "2025.01.02"]
[EventType "swiss"]
[EventCountry "IND"]
[SourceTitle "playchess.com"]
[Source "ChessBase"]
[SourceQuality "1"]
[TimeControl "5400+30"]

{[%evp 23,116,-1,5,-31,35,48,49,56,48,47,60,-8,0,-16,-30,-18,-30,-26,-27,-19,-41,-95,-107,-190,-43,-22,-21,-25,-24,-22,-17,-61,-60,-63,-60,-79,-79,-79,-79,-101,-80,-83,-83,-87,-84,-76,-27,-122,-54,-237,-237,-223,-223,-494,-468,-1245,-1178,-793,-670,-4520,-1281,-29944,-29943,-29952,-29948,-29958,-29959,-29957,-29959,-29961,-29962,-29967,-29971,-29972,-29964,-29964,-29965,-29965,-29965,-29964,-29967,-29964,-29960,-29966,-29963,-29962,-29964,-29971,-29973,-29976,-29977,-29982,-29983,-29983,-29982]} 1. e4 {[%emt 0:07:02]} c5 {[%emt 0:00:12]} 2. Nf3 {[%emt 0:00:09]} d6 {[%emt 0:00:09]} 3. d4 {[%emt 0:00:22]} cxd4 {[%emt 0:00:07]} 4. Nxd4 {[%emt 0:00:20]} Nf6 {[%emt 0:00:05]} 5. Nc3 {[%emt 0:00:03]} a6 {[%emt 0:00:09]} 6. Be3 {[%emt 0:00:05]} e6 {[%emt 0:00:08]} 7. a3 {[%emt 0:00:05]} b5 {[%emt 0:01:41]} 8. g4 {[%emt 0:00:15]} Bb7 {[%emt 0:00:07]} 9. Bg2 {[%emt 0:00:06]} Nfd7 {[%emt 0:01:58]} 10. g5 {[%emt 0:00:59]} Nb6 {[%emt 0:00:54]} 11. h4 {[%emt 0:01:28]} N8d7 {[%emt 0:02:12]} 12. f4 {[%emt 0:00:09]} Rc8 {[%emt 0:01:02]} 13. O-O {[%emt 0:00:55]} e5 {[%emt 0:03:00]} (13... Nc4 $15 14. Bc1 e5) 14. fxe5 $1 $14 {[%emt 0:11:22]} (14. Nf5 g6 $15) 14... Nxe5 {[%emt 0:01:21]} 15. Nd5 {[%emt 0:03:05]} Nxd5 {[%emt 0:03:55]} 16. exd5 {[%emt 0:00:39]} h6 {[%emt 0:00:15]} 17. Nf3 {[%emt 0:11:53]} (17. a4 $14 bxa4 18. c4) 17... hxg5 $11 {[%emt 0:07:19]} 18. Nxe5 {[%emt 0:01:19]} dxe5 {[%emt 0:00:06]} 19. Qf3 {[%emt 0:01:49]} (19. Bxg5 $2 Bc5+ 20. Rf2 Qb6 $19 (20... Bxf2+ $2 21. Kxf2 f6 22. Be3 $19)) 19... Qf6 {[%emt 0:10:51]} 20. Qxf6 {[%emt 0:15:08]} gxf6 {[%emt 0:00:12]} 21. hxg5 {[%emt 0:00:39]} fxg5 {[%emt 0:11:28]} 22. Rf6 {[%emt 0:00:47]} (22. Rf5 $1 $15) 22... Rh6 $17 {[%emt 0:06:34]} 23. Bxg5 {[%emt 0:03:36]} (23. Rxh6 $17 {might work better.} Bxh6 24. Rf1) 23... Rxf6 {[%emt 0:09:58]} (23... Bc5+ $1 $19 24. Kf1 Rh5) 24. Bxf6 $15 {[%emt 0:00:35]} Rxc2 {[%emt 0:00:02]} 25. Bxe5 {[%emt 0:01:35]} Bc5+ {[%emt 0:01:19]} 26. Kh1 {[%emt 0:00:17]} Rd2 {[%emt 0:00:10]} 27. Bc3 {[%emt 0:04:47]} Rd3 {[%emt 0:03:06]} 28. Re1+ {[%emt 0:00:04]} Kf8 $1 {[%emt 0:01:21]} 29. Be4 {[%emt 0:04:38]} Bxd5 {[%emt 0:00:10]} 30. Bxd5 {[%emt 0:00:57]} Rxd5 {[%emt 0:00:07]} 31. Kg2 {[%emt 0:00:04]} Rd3 {[%emt 0:04:18]} 32. Rh1 {[%emt 0:04:59]} Bd4 {[%emt 0:07:53]} ({Not} 32... Bxa3 33. Bf6 Ke8 (33... Rd2+ 34. Kf3 $16) 34. Rh8+ Bf8 35. Bg7 $16) 33. Bxd4 {[%emt 0:06:09]} Rxd4 {[%emt 0:00:06]} 34. Kf3 {[%emt 0:00:05]} Rd2 {[%emt 0:02:23]} (34... Kg7 $17 35. Rh2 Rd6) 35. Rb1 {[%emt 0:00:01]} (35. Rh8+ $11 {was the only way to keep the balance.} Kg7 36. Ra8) 35... Rd3+ {[%emt 0:03:35]} ({Black should play} 35... Rc2 $17 36. Ke4 Ke7) 36. Ke2 $2 {[%emt 0:01:23]} (36. Ke4 $15 Rd2 37. Ke3) 36... Rg3 $1 $19 {[%emt 0:01:33]} 37. Kd2 {[%emt 0:00:19] [#]} a5 $1 {[%emt 0:00:38]} 38. a4 $2 {[%emt 0:09:05]} (38. b4 a4 (38... Rxa3 39. bxa5 Rxa5 40. Kc3 $17) 39. Rc1) 38... bxa4 $19 {[%emt 0:00:35]} 39. Ra1 {[%emt 0:04:40]} (39. Kc2 $142 Rg2+ 40. Kc3) 39... a3 $19 {[%emt 0:02:01]} 40. bxa3 {[%emt 0:00:08]} a4 {[%emt 0:00:05]} 41. Ke2 {[%emt 0:00:28]} Rb3 {[%emt 0:00:32]} (41... Ke7 $142 42. Re1 Rxa3 43. Kd2+ Kf6 44. Rf1+ Ke7 45. Re1+) 42. Kf2 {[%emt 0:00:08]} Kg7 {[%emt 0:00:24]} 43. Ra2 {[%emt 0:00:11]} f5 {[%emt 0:00:10]} 44. Kg2 {[%emt 0:00:06]} Kf6 {[%emt 0:00:06]} 45. Kf2 {[%emt 0:00:04]} f4 {[%emt 0:00:12]} 46. Kg2 {[%emt 0:00:06]} Ke5 {[%emt 0:01:21]} 47. Kf2 {[%emt 0:00:09]} Kd4 {[%emt 0:00:46]} 48. Ra1 {[%emt 0:02:44]} Rd3 {[%emt 0:01:01]} 49. Rb1 {[%emt 0:01:35]} Rxa3 {[%emt 0:00:19]} 50. Rb4+ {[%emt 0:00:01]} Ke5 {[%emt 0:00:19]} 51. Rb5+ {[%emt 0:00:05]} Ke4 {[%emt 0:00:06]} 52. Rb4+ {[%emt 0:00:15] [#]} Kf5 $1 {[%emt 0:00:06]} 53. Rb8 {[%emt 0:00:09]} Rc3 {[%emt 0:00:45]} 54. Ra8 {[%emt 0:00:14]} a3 {[%emt 0:00:05]} 55. Ra7 {[%emt 0:01:12]} Ke4 {[%emt 0:01:00]} 56. Ra4+ {[%emt 0:00:05]} Kd3 {[%emt 0:00:14]} 57. Rxf4 {[%emt 0:00:09]} Kc2 {[%emt 0:00:04]} 58. Ra4 {[%emt 0:00:09]} Kb2 {[%emt 0:00:08]} 0-1